[Event "German Rapid Championship 2022"]
[Site "Goettingen"]
[Date "2022.09.25"]
[Round "6.2"]
[White "Krastev, Alexander"]
[Black "Fridman, Daniel"]
[Result "0-1"]
[ECO "C02"]
[WhiteElo "2431"]
[BlackElo "2607"]
[Annotator "TA"]
[PlyCount "70"]
[EventDate "2022.09.24"]
[EventType "swiss"]
[EventCountry "GER"]
[SourceTitle "playchess.com"]
[Source "ChessBase"]
[SourceQuality "1"]
[TimeControl "900+10"]

{[%evp 10,70,17,0,-4,-35,-24,-39,-29,-32,-18,-43,-25,-104,-102,-105,-96,-112,-116,-105,-94,-136,-113,-295,-294,-300,-345,-384,-383,-384,-377,-374,-385,-657,-652,-833,-585,-589,-479,-479,-328,-308,-280,-268,-274,-307,-308,-1068,-1013,-1108,-1094,-1079,-1075,-1231,-1186,-2289,-2286,-2266,-2218,-29986,-29987,-29992,-29976]} 1. e4 {[%emt 0:00:02]} e6 {[%emt 0:00:02]} 2. d4 {[%emt 0:00:16]} d5 {[%emt 0:00:01]} 3. e5 {[%emt 0:00:37]} c5 {[%emt 0:00:02]} 4. c3 {[%emt 0:00:01]} Qb6 {[%emt 0:00:01]} 5. Nf3 {[%emt 0:00:02]} Bd7 {[%emt 0:00:01]} 6. Bd3 {[%emt 0:00:37]} cxd4 {[%emt 0:00:02] C02: French: Advance Variation.} 7. O-O {[%emt 0:00:19] 7.Nxd4 is the modern continuation.} Nc6 {[%emt 0:00:02]} 8. Re1 {[%emt 0:00:04]} Nge7 {[%emt 0:00:02] Black is slightly better.} 9. h4 {[%emt 0:00:01]} a6 {[%emt 0:00:02]} 10. h5 {[%emt 0:00:07]} g6 {[%emt 0:00:01] [#]} 11. Nh2 $146 {[%emt 0:01:29]} (11. Bc2 $11 {remains equal.}) ({Predecessor:} 11. h6 Ng8 12. cxd4 Nxh6 13. Nc3 Nf5 14. Na4 Qc7 15. Bg5 Nfxd4 16. Nxd4 Nxd4 17. Bf6 {1-0 (46) Mamedov,R (2654)-Markoja,B (2453) Chess.com INT 2021}) 11... Bg7 $17 {[%emt 0:01:56]} 12. Ng4 {[%emt 0:08:29]} gxh5 {[%emt 0:00:02]} 13. Nf6+ {[%emt 0:00:01]} Bxf6 {[%emt 0:00:02]} 14. exf6 {[%emt 0:00:01]} Ng6 {[%emt 0:00:05]} 15. Qxh5 {[%emt 0:00:20]} O-O-O {[%emt 0:00:02]} 16. b4 $2 {[%emt 0:01:03]} (16. Bf1 $17 {was called for.}) 16... dxc3 $19 {[%emt 0:00:38][%cal Bd4c3,Bc3c2][%mdl 32]} 17. b5 {[%emt 0:00:05]} Nb4 {[%emt 0:02:11]} 18. Qd1 {[%emt 0:00:16]} Bxb5 {[%emt 0:06:25]} 19. Bxb5 {[%emt 0:00:01][%cal Ob1c3]} c2 {[%emt 0:00:05]} ({Don't blunder} 19... Qxb5 $2 20. Nxc3 Qc4 21. Na4 $19) 20. Qd2 {[%emt 0:00:59]} Qxb5 {[%emt 0:00:02] Dancing on a razor blade.} 21. Re3 $2 {[%emt 0:01:12]} (21. a3 Nd3 22. Qxc2+ Kd7 23. Rd1) 21... d4 {[%emt 0:01:54]} 22. Rb3 {[%emt 0:00:03]} a5 {[%emt 0:00:02]} 23. Na3 {[%emt 0:01:36]} Qc5 {[%emt 0:00:05]} 24. Bb2 {[%emt 0:00:37]} Rhg8 {[%emt 0:01:18]} 25. Nxc2 {[%emt 0:00:08]} Nxc2 {[%emt 0:00:52]} ({And not} 25... Qxc2 26. Rc1 d3 27. Rxb4 (27. Rxc2+ dxc2 28. Qc3+ Kb8 $15) (27. Rxd3 Rxd3 28. Rxc2+ Kd7 $11) 27... axb4 28. Rxc2+ dxc2 29. Qxc2+ Kb8 30. Qa4 $11) 26. Rc1 {[%emt 0:00:00] [#]} Kb8 $1 {[%emt 0:00:01]} 27. Rxc2 {[%emt 0:00:14]} (27. Qxc2 Qxc2) 27... Qd5 {[%emt 0:00:02] Hoping for ...d3.} 28. Ba3 $2 {[%emt 0:00:57]} (28. f3) 28... Ne5 {[%emt 0:00:25][%csl Gg8][%cal Rd5g2]} 29. Rg3 {[%emt 0:00:08]} Rxg3 {[%emt 0:00:12]} 30. fxg3 {[%emt 0:00:02]} d3 {[%emt 0:01:15]} 31. Rc5 {[%emt 0:00:09]} Qd4+ {[%emt 0:00:02]} 32. Kh1 {[%emt 0:00:01]} Nc4 {[%emt 0:00:06]} 33. Rxc4 {[%emt 0:00:22]} Qxc4 {[%emt 0:00:03]} 34. Qxa5 {[%emt 0:00:01]} Rd5 {[%emt 0:00:18]} 35. Qb6 {[%emt 0:00:29]} Qd4 {[%emt 0:00:04] White got outplayed after the opening.  Weighted Error Value: White=0.79/Black=0.32} 0-1

[Event "German Rapid Championship 2022"]
[Site "Goettingen"]
[Date "2022.09.25"]
[Round "6.3"]
[White "Carlstedt, Jonathan"]
[Black "Poetsch, Hagen"]
[Result "1/2-1/2"]
[ECO "E43"]
[WhiteElo "2433"]
[BlackElo "2491"]
[Annotator "TA"]
[PlyCount "100"]
[EventDate "2022.09.24"]
[EventType "swiss"]
[EventCountry "GER"]
[SourceTitle "playchess.com"]
[Source "ChessBase"]
[SourceQuality "1"]
[TimeControl "900+10"]

{[%evp 13,100,-4,25,0,0,0,10,0,28,21,30,0,34,18,91,-26,0,-27,-8,-8,-13,-1,0,0,-7,-9,0,0,0,0,0,0,14,0,42,42,52,0,41,-16,0,-31,-33,-28,-31,-34,-5,-14,-16,-16,-14,-10,-13,-89,0,0,0,0,0,0,0,0,-7,-7,0,0,0,-59,-59,-59,-59,-73,-75,-83,-87,-193,-64,-171,-121,-726,-698,-670,-654,-588,-543,-409,-409,-980,-370]} 1. d4 {[%emt 0:00:09]} Nf6 {[%emt 0:00:03]} 2. c4 {[%emt 0:00:03]} e6 {[%emt 0:00:02]} 3. Nc3 {[%emt 0:00:03]} Bb4 {[%emt 0:00:02]} 4. e3 {[%emt 0:00:02]} b6 {[%emt 0:00:02]} 5. Nf3 {[%emt 0:00:10]} Bb7 {[%emt 0:00:03]} 6. Bd2 {[%emt 0:00:02]} O-O {[%emt 0:00:07]} 7. Bd3 {[%emt 0:00:03]} c5 {[%emt 0:00:06]} 8. dxc5 {[%emt 0:01:53] E43: Nimzo-Indian: Rubinstein: 4...b6.} Bxc5 {[%emt 0:00:13]} 9. O-O {[%emt 0:01:37]} Nc6 {[%emt 0:02:07]} 10. a3 {[%emt 0:00:20] The position is equal.} d5 {[%emt 0:00:33]} 11. cxd5 {[%emt 0:00:36]} Nxd5 {[%emt 0:00:03] [#]} 12. Qb1 $146 {[%emt 0:01:08]} ({Predecessor:} 12. Ne4 Be7 13. Qe2 Bf6 14. Rab1 Rc8 15. Rfd1 Qe7 16. Be1 Ne5 17. Nxf6+ Qxf6 18. Be4 {½-½ (41) Adamczewski,M (1961)-Januszkiewicz,W (1922) Szklarska Poreba 2016}) 12... h6 {[%emt 0:01:59]} 13. Rd1 {[%emt 0:00:17]} (13. b4 $5 {[%cal Rb4c5]} Bd6 14. Nxd5 exd5 15. Bc3 $14) 13... Rc8 {[%emt 0:01:34]} (13... Nf6 $11) 14. Be4 {[%emt 0:03:15]} ({White should try} 14. Nxd5 $16 exd5 15. Bc3) 14... Nce7 {[%emt 0:01:44]} 15. Be1 {[%emt 0:00:29]} Qe8 {[%emt 0:01:06]} 16. b4 {[%emt 0:01:59]} Bd6 {[%emt 0:00:10]} 17. Nxd5 {[%emt 0:01:06]} Nxd5 {[%emt 0:00:55]} 18. Bxd5 {[%emt 0:00:01]} exd5 {[%emt 0:00:11]} (18... Bxd5 $2 19. e4 $18) 19. Qd3 {[%emt 0:00:08]} Qe6 {[%emt 0:03:07]} 20. Nd4 {[%emt 0:00:58]} Qe5 {[%emt 0:00:12]} 21. f4 {[%emt 0:00:43]} Qf6 {[%emt 0:00:04]} 22. Bc3 {[%emt 0:01:10]} Bb8 {[%emt 0:02:00]} 23. Rac1 {[%emt 0:00:07]} g6 {[%emt 0:00:20] Inhibits Nf5.} 24. b5 {[%emt 0:00:17]} Rc4 {[%emt 0:00:52]} 25. Rf1 {[%emt 0:01:38]} (25. Ba1 $14) 25... Re8 {[%emt 0:00:24]} 26. Rce1 {[%emt 0:00:35]} ({Better is} 26. Nc6 $14 Qe6 27. Nxb8 Rxb8 28. Bd4) 26... Qe7 {[%emt 0:00:26]} 27. Bb2 {[%emt 0:00:35][%cal Oe3e4]} Qe4 {[%emt 0:00:32]} 28. Qxe4 {[%emt 0:00:08]} Rxe4 {[%emt 0:00:08]} 29. Kf2 {[%emt 0:00:09]} a6 {[%emt 0:00:14]} 30. bxa6 {[%emt 0:00:06]} Bxa6 {[%emt 0:00:02]} 31. Rc1 {[%emt 0:00:02]} Bd6 {[%emt 0:00:20]} 32. Rfd1 {[%emt 0:00:14]} Re8 {[%emt 0:00:20]} 33. Ne2 {[%emt 0:00:15]} (33. Rxc4 $11 Bxc4 34. g4) 33... Bc5 {[%emt 0:00:07]} (33... Rce4 $17 34. Bd4 Bxe2 35. Kxe2 Bxf4) 34. Bd4 $11 {[%emt 0:00:17]} Rxc1 {[%emt 0:00:29]} 35. Nxc1 {[%emt 0:00:13]} Bxa3 {[%emt 0:00:10]} 36. Nd3 {[%emt 0:00:11]} Rb8 {[%emt 0:00:10]} 37. Ra1 {[%emt 0:00:02]} Bxd3 {[%emt 0:00:06]} 38. Rxa3 {[%emt 0:00:00][%mdl 4096] Endgame KRB-KRB} Be4 {[%emt 0:00:06]} 39. Ra6 {[%emt 0:00:23]} b5 {[%emt 0:00:11][%cal Bb6b5,Bb5b4,Bb4b3][%mdl 32]} 40. Rb6 {[%emt 0:00:04]} (40. Be5 $11 Rc8 41. g4) 40... Rxb6 $15 {[%emt 0:00:02]} 41. Bxb6 {[%emt 0:00:00] KB-KB} b4 {[%emt 0:00:19]} 42. Bc5 {[%emt 0:00:02]} b3 {[%emt 0:00:01] ( -> ...b2)} 43. Bd4 {[%emt 0:00:01]} Kf8 {[%emt 0:00:04]} 44. g3 {[%emt 0:00:02] [#]} (44. g4 $17 {was worth a try.}) 44... Ke7 {[%emt 0:00:02]} ({Black should play} 44... h5 $1 $19 {Threatens to win with ...Ke7.} 45. Ke1 Ke7) 45. Bb2 {[%emt 0:00:25]} (45. g4 $1 $15) 45... Ke6 {[%emt 0:00:11]} (45... h5 $19 46. Ke2 Ke6) 46. h4 $2 {[%emt 0:00:12][%mdl 8192] Loses the game.} (46. g4 $17) 46... Kf5 $19 {[%emt 0:00:03]} 47. Bd4 {[%emt 0:00:38]} h5 {[%emt 0:00:02]} 48. Ke2 {[%emt 0:00:02]} Bc2 {[%emt 0:00:07]} 49. Bb2 {[%emt 0:00:17]} Ke4 {[%emt 0:00:01]} 50. Bc1 {[%emt 0:00:12]} (50. f5 $142 Kxf5 51. Kd2) 50... Bd3+ $2 {[%emt 0:00:02][%mdl 32768] Weighted Error Value: White=0.46/Black=0.19 (very precise) . An unexpected result.} (50... f5 51. Kd2 Bd3) 1/2-1/2

[Event "German Rapid Championship 2022"]
[Site "Goettingen"]
[Date "2022.09.25"]
[Round "6.4"]
[White "Laux, Dominik"]
[Black "Heider, Martin"]
[Result "1/2-1/2"]
[ECO "B07"]
[WhiteElo "2248"]
[BlackElo "2393"]
[Annotator "TA"]
[PlyCount "95"]
[EventDate "2022.09.24"]
[EventType "swiss"]
[EventCountry "GER"]
[SourceTitle "playchess.com"]
[Source "ChessBase"]
[SourceQuality "1"]
[TimeControl "900+10"]

{[%evp 11,95,18,8,20,1,6,21,15,18,5,24,21,48,52,65,36,126,51,65,52,56,62,57,51,67,69,116,86,89,84,154,127,199,200,195,185,193,205,192,191,205,199,197,208,208,206,208,194,185,187,233,231,280,193,270,283,264,250,209,108,425,352,716,328,342,252,337,338,358,357,355,339,357,356,345,305,351,362,341,348,362,0,0,0,283,0]} 1. d4 {[%emt 0:00:41]} d6 {[%emt 0:00:34]} 2. e4 {[%emt 0:00:42]} Nf6 {[%emt 0:00:13]} 3. Nc3 {[%emt 0:00:03]} c6 {[%emt 0:00:01]} 4. f4 {[%emt 0:01:06]} Qa5 {[%emt 0:00:15]} 5. Bd3 {[%emt 0:01:13]} e5 {[%emt 0:00:16]} 6. dxe5 {[%emt 0:01:00]} dxe5 {[%emt 0:00:08]} 7. Nf3 {[%emt 0:00:18] B07: Pirc Defence: Miscellaneous Systems.} Nbd7 {[%emt 0:01:54]} 8. O-O {[%emt 0:00:40]} Bd6 {[%emt 0:01:03] [#]} 9. Qe1 $146 {[%emt 0:02:11] The position is equal.} ({Predecessor:} 9. f5 Bc5+ 10. Kh1 Ng4 11. Qe1 h5 12. h3 b5 13. hxg4 hxg4+ 14. Nh2 Nf6 15. Be3 {1-0 (33) Bodnar,N (2438)-Hoffmann,A (2185) Chess.com INT 2022}) 9... Qc7 {[%emt 0:03:54]} (9... exf4 $2 10. e5 Nxe5 11. Bxf4 $18) (9... O-O {is interesting.} 10. f5 b5 11. a4 Bb7) 10. f5 {[%emt 0:01:57]} Nc5 {[%emt 0:00:43]} 11. Qg3 {[%emt 0:01:17]} Rg8 {[%emt 0:03:45][%cal Oc8f5]} (11... Kf8 {looks sharper.} 12. Be3 Bxf5 13. exf5 e4) 12. Bg5 {[%emt 0:00:59] aiming for Bxf6.} Qe7 {[%emt 0:00:32]} 13. Kh1 {[%emt 0:01:09]} Bd7 {[%emt 0:00:19]} (13... h6 $14 14. Bxf6 Qxf6) 14. Rad1 {[%emt 0:01:13]} (14. Bxf6 $16 Qxf6 15. Be2) 14... O-O-O $14 {[%emt 0:00:13][%cal Od7f5]} 15. Qe1 $36 {[%emt 0:00:21][%mdl 2048] White has the initiative.} h6 {[%emt 0:00:41]} 16. Bh4 {[%emt 0:00:06]} g5 {[%emt 0:00:48]} 17. fxg6 {[%emt 0:00:16]} fxg6 {[%emt 0:00:09]} 18. Bc4 {[%emt 0:00:33] Strongly threatening Bxf6.} Rgf8 {[%emt 0:00:07]} (18... Be6 $14 {should be considered.} 19. Bxf6 Qxf6) 19. Qd2 {[%emt 0:00:42][%csl LRd6,LRh6] White is more active.} Be6 {[%emt 0:00:45]} 20. Bxe6+ {[%emt 0:00:05]} Qxe6 {[%emt 0:00:47]} (20... Nxe6 $142 21. Qxh6 Qe8) 21. Qxh6 $16 {[%emt 0:00:05]} Ng4 {[%emt 0:00:24]} (21... Qe8 $16 22. Qe3 b6) 22. Qg5 $18 {[%emt 0:00:35]} Rd7 {[%emt 0:00:20] ...Be7 is the strong threat.} 23. h3 {[%emt 0:00:24]} Be7 {[%emt 0:00:49]} 24. Qxg4 {[%emt 0:00:02]} Qxg4 {[%emt 0:00:02]} 25. hxg4 {[%emt 0:00:01]} Rxd1 {[%emt 0:00:16]} 26. Rxd1 {[%emt 0:00:10]} (26. Nxd1 Bxh4 27. Kg1 Bg3 $14) 26... Bxh4 {[%emt 0:00:09]} 27. Nxh4 {[%emt 0:00:11]} Rh8 {[%emt 0:00:01]} 28. g3 {[%emt 0:00:03]} g5 {[%emt 0:00:01] [#]} 29. Kg2 $1 {[%emt 0:00:01]} gxh4 {[%emt 0:00:03][%mdl 4096] Endgame KRN-KRN} 30. Rh1 $1 {[%emt 0:00:05]} h3+ {[%emt 0:00:26]} (30... Rg8 $142 31. gxh4 (31. Rxh4 Kd7 $18) 31... Rxg4+ 32. Kf3 Rf4+ 33. Ke3 Nd7) 31. Rxh3 {[%emt 0:00:02]} Rd8 {[%emt 0:00:02]} 32. Rh6 {[%emt 0:00:49]} Rd2+ {[%emt 0:00:23]} (32... Kd7 {was necessary.} 33. g5 Rg8) 33. Kh3 {[%emt 0:00:01]} Kd7 {[%emt 0:00:08] [#]} 34. g5 $1 {[%emt 0:00:12]} Rxc2 {[%emt 0:00:13] [#]} 35. Kg4 {[%emt 0:00:41]} (35. Rf6 $1 $18) 35... b5 $2 {[%emt 0:00:11][%mdl 8192]} (35... Rxb2 $16 36. Kf5 Rg2) 36. Rh7+ {[%emt 0:00:21]} Ke6 $2 {[%emt 0:00:03]} (36... Ke8 37. Rc7 (37. Rxa7 Rxb2 38. g6 Kf8 $18) 37... b4) 37. Rc7 {[%emt 0:00:08]} (37. g6 $142) 37... Kd6 {[%emt 0:00:28]} 38. Rxa7 {[%emt 0:00:02]} Rxb2 {[%emt 0:00:06]} 39. g6 {[%emt 0:00:26] Threatens to win with g7.} Ne6 {[%emt 0:00:01]} 40. g7 {[%emt 0:00:15]} Nxg7 {[%emt 0:00:02]} 41. Rxg7 {[%emt 0:00:01] KRN-KR} b4 {[%emt 0:00:01]} 42. Nd1 {[%emt 0:00:10]} ({Weaker is} 42. Rg6+ Kc7 43. Na4 (43. Rg7+ Kd6 $18) 43... Rxa2 $18) 42... Rxa2 {[%emt 0:00:08]} 43. Rb7 {[%emt 0:00:12]} c5 {[%emt 0:00:07]} 44. Ne3 {[%emt 0:00:07]} Kc6 {[%emt 0:00:02]} 45. Rb8 {[%emt 0:00:04]} Kc7 {[%emt 0:00:07]} 46. Rb5 {[%emt 0:00:10]} Kc6 {[%emt 0:00:05]} 47. Rb8 {[%emt 0:00:12]} Kc7 {[%emt 0:00:01]} 48. Rb5 $2 {Weighted Error Value: White=0.39/Black=0.31} ({White should play} 48. Re8 $18) 1/2-1/2

[Event "German Rapid Championship 2022"]
[Site "Goettingen"]
[Date "2022.09.25"]
[Round "6.5"]
[White "Lubbe, Nikolas"]
[Black "Knuedel, Torben"]
[Result "1-0"]
[ECO "A40"]
[WhiteElo "2479"]
[BlackElo "2221"]
[Annotator "TA"]
[PlyCount "93"]
[EventDate "2022.09.24"]
[EventType "swiss"]
[EventCountry "GER"]
[SourceTitle "playchess.com"]
[Source "ChessBase"]
[SourceQuality "1"]
[TimeControl "900+10"]

{[%evp 20,93,0,0,0,0,0,0,0,0,0,0,50,0,127,39,77,4,4,8,20,-62,-60,-44,31,29,52,38,52,23,20,20,52,45,78,64,78,79,129,114,135,141,193,199,418,421,397,366,395,223,368,0,402,294,545,536,589,587,579,577,484,433,439,432,534,526,605,535,504,511,487,451,12842,12843,29989,29990]} 1. d4 {[%emt 0:00:02]} e6 {[%emt 0:00:02]} 2. Nf3 {[%emt 0:00:20]} c5 {[%emt 0:00:05]} 3. e3 {[%emt 0:00:17]} Nf6 {[%emt 0:00:12]} 4. c4 {[%emt 0:00:18]} cxd4 {[%emt 0:00:18]} 5. exd4 {[%emt 0:00:37]} d5 {[%emt 0:00:09]} 6. Nc3 {[%emt 0:00:16]} Be7 {[%emt 0:00:18]} 7. Bd3 {[%emt 0:02:00]} Nc6 {[%emt 0:00:05]} 8. O-O {[%emt 0:00:15]} Nb4 {[%emt 0:00:46]} 9. Be2 {[%emt 0:01:48]} dxc4 {[%emt 0:00:03]} 10. Bxc4 {[%emt 0:00:07]} O-O {[%emt 0:00:09]} 11. Bg5 {[%emt 0:02:31]} Bd7 {[%emt 0:04:57] [#] B14: Caro-Kann: Panov-Botvinnik Attack with 5...e6 and 5...g6.} 12. Qe2 $146 {[%emt 0:01:58]} ({Predecessor:} 12. Ne5 Rc8 13. a3 Nbd5 14. Nxd5 Nxd5 15. Bxd5 exd5 16. Bxe7 Qxe7 17. Qb3 Be6 18. Rfe1 Rc7 19. Nd3 {½-½ (66) Sychev,K (2556)-Kovalev,D (2487) Chess.com INT 2021}) 12... Bc6 {[%emt 0:00:18]} 13. Rad1 {[%emt 0:00:50]} h6 {[%emt 0:00:59] The position is equal.} 14. Bc1 {[%emt 0:00:46]} Rc8 {[%emt 0:01:03]} 15. Ne5 {[%emt 0:00:21]} Nfd5 {[%emt 0:00:14]} ({Better is} 15... Bd6 $11) 16. Ne4 {[%emt 0:00:55]} (16. Bb3 $14) 16... f5 {[%emt 0:03:21]} (16... Nb6 $11 {remains equal.} 17. b3 Bd5) 17. Nc3 {[%emt 0:00:16] White is more active.} (17. Nc5 $16 Bxc5 18. dxc5) 17... Qd6 {[%emt 0:00:53]} 18. Ng6 {[%emt 0:00:58]} (18. Nxc6 $16 Qxc6 19. Bb3) 18... Rf6 $1 $11 {[%emt 0:00:21]} 19. Nxe7+ {[%emt 0:00:04]} Qxe7 {[%emt 0:00:11]} 20. Rfe1 {[%emt 0:00:11]} ({White should try} 20. Bd2 $11) 20... Nxc3 $15 {[%emt 0:01:01]} 21. bxc3 {[%emt 0:00:15]} Nd5 {[%emt 0:00:01]} (21... Bd5 $15 22. Bxd5 Nxd5) 22. Bd2 $14 {[%emt 0:00:15]} Qf7 {[%emt 0:00:16]} 23. Bb3 {[%emt 0:00:24]} b5 {[%emt 0:00:42]} 24. c4 {[%emt 0:00:07]} bxc4 {[%emt 0:00:01]} 25. Bxc4 {[%emt 0:00:01]} Kh8 {[%emt 0:00:27]} 26. Rc1 {[%emt 0:00:14][%cal Bd1c1,Bc1c5,Bc5e5][%mdl 32] aiming for Ba6.} Re8 {[%emt 0:00:17]} 27. Bb3 $36 {[%emt 0:01:03][%mdl 2048] White is more active. A strong pair of Bishops. White now steadily converts the win.} (27. Qe5 {looks sharper.} Rg6 28. Bb3 Bb7 29. f3) 27... Bb7 {[%emt 0:00:08]} 28. Rc5 {[%emt 0:00:04] [#] Black must now prevent Bxd5.} Nb6 {[%emt 0:00:43]} (28... Rc8 $142) 29. Re5 {[%emt 0:00:18][%cal Rb3e6]} Qg6 {[%emt 0:00:29][%csl Gb7][%cal Rg6g2]} 30. f3 {[%emt 0:00:14]} Kh7 {[%emt 0:00:24]} (30... Rd8 $16 31. Rxe6 (31. Bxe6 Bd5 $16) 31... Bd5) 31. d5 $18 {[%emt 0:00:24][%cal Rd5e6]} ({Worse is} 31. Rxe6 Rfxe6 32. Bxe6 Bxf3 33. Bg8+ (33. Qxf3 Rxe6 34. Rf1 Nc4 $11) 33... Rxg8 $11) ({Inferior is} 31. Bxe6 Bxf3 32. Qxf3 Rfxe6 $11) 31... Nc8 $2 {[%emt 0:01:00] [#]} (31... Nd7) 32. dxe6 {[%emt 0:00:14]} Ne7 {[%emt 0:00:00]} 33. Bc3 {[%emt 0:00:21]} Rff8 {[%emt 0:00:01]} 34. Bb4 {[%emt 0:00:15]} (34. Rd1 $142) 34... Rf6 {[%emt 0:00:06]} (34... Nc6 $142) 35. Bc3 {[%emt 0:00:27]} Rff8 $1 {[%emt 0:00:01]} 36. Kh1 {[%emt 0:00:09]} Nc6 $2 {[%emt 0:00:14]} (36... Rc8 {was necessary.}) 37. Rc5 {[%emt 0:00:08]} Re7 {[%emt 0:00:23]} 38. Qb5 {[%emt 0:00:14]} Nd8 {[%emt 0:00:10]} 39. Rce5 {[%emt 0:00:16]} Nc6 {[%emt 0:00:24]} 40. R5e2 {[%emt 0:00:01]} Rfe8 {[%emt 0:00:08]} 41. Bb2 {[%emt 0:00:06]} Nd8 {[%emt 0:00:05]} 42. Ba3 {[%emt 0:00:12]} Bc6 {[%emt 0:00:01]} 43. Qd3 {[%emt 0:00:19]} Rxe6 {[%emt 0:00:27]} 44. Bxe6 {[%emt 0:00:02]} Nxe6 {[%emt 0:00:02]} 45. Qd6 {[%emt 0:00:07][%csl LRc6,LRe6] Against Nf4} f4 {[%emt 0:00:32]} (45... Bd5 $142 46. Qxd5 Nf4) 46. Qxc6 {[%emt 0:00:15][%cal Re2e6]} Qf5 {[%emt 0:00:10]} 47. Qxe8 {[%emt 0:00:16] Weighted Error Value: White=0.39/Black=0.58} 1-0

[Event "German Rapid Championship 2022"]
[Site "Goettingen"]
[Date "2022.09.25"]
[Round "6.6"]
[White "Kopylov, Michael"]
[Black "Muckle, Julius"]
[Result "1-0"]
[ECO "D11"]
[WhiteElo "2371"]
[BlackElo "2401"]
[Annotator "TA"]
[PlyCount "98"]
[EventDate "2022.09.24"]
[EventType "swiss"]
[EventCountry "GER"]
[SourceTitle "playchess.com"]
[Source "ChessBase"]
[SourceQuality "1"]
[TimeControl "900+10"]

{[%evp 13,98,23,23,22,25,17,20,11,24,23,24,20,85,88,84,67,127,100,121,97,91,68,74,68,97,81,83,69,72,83,78,80,80,77,75,0,74,68,81,77,95,106,213,191,210,118,156,168,180,180,183,178,178,179,185,185,233,222,347,343,404,321,416,232,239,239,432,159,143,0,436,425,444,427,497,486,486,487,596,568,517,417,916,895,1256,853,29984]} 1. d4 {[%emt 0:00:03]} d5 {[%emt 0:00:01]} 2. c4 {[%emt 0:00:02]} c6 {[%emt 0:00:01]} 3. Nf3 {[%emt 0:00:04]} Nf6 {[%emt 0:00:01]} 4. Qc2 {[%emt 0:00:03]} g6 {[%emt 0:00:03]} 5. Bf4 {[%emt 0:00:04]} Bf5 {[%emt 0:00:02]} 6. Qb3 {[%emt 0:00:02]} Qb6 {[%emt 0:00:02]} 7. e3 {[%emt 0:00:03] 7.e3 is better than 7.c5.} Nbd7 {[%emt 0:00:08]} 8. Nc3 {[%emt 0:00:03] D11: Slav Defence: 3 Nf3 sidelines and 3...Nf6 4 e3 Bg4.} Bg7 {[%emt 0:01:14]} 9. h3 {[%emt 0:00:24]} O-O {[%emt 0:00:04]} 10. Be2 {[%emt 0:00:03] The position is equal.} Ne4 {[%emt 0:02:09]} (10... dxc4 {seems wilder.} 11. Bxc4 Ne4 12. O-O Qxb3 13. Bxb3 Nxc3 14. bxc3 Bd3) 11. cxd5 {[%emt 0:00:19]} Nxc3 $1 {[%emt 0:00:20]} 12. bxc3 {[%emt 0:00:09]} Qxb3 {[%emt 0:00:03]} (12... Nc5 $11 {keeps the balance.} 13. Qa3 Nd3+ 14. Bxd3 Bxd3) 13. axb3 $16 {[%emt 0:00:01] And now dxc6 would win.} cxd5 {[%emt 0:00:01][%cal Od7c5]} 14. O-O {[%emt 0:00:55] [#]} f6 $146 {[%emt 0:03:53]} (14... Rfc8 $14) ({Predecessor:} 14... Rfc8 15. c4 dxc4 16. bxc4 a5 17. g4 e5 18. Bg3 Bc2 19. dxe5 Nc5 20. Nd4 Bd3 {1-0 (38) Tran,T (2491)-Tran,M (2337) Budapest 2018}) 15. Ra5 {[%emt 0:00:33]} e5 {[%emt 0:01:29]} 16. Bg3 {[%emt 0:00:06]} Be6 {[%emt 0:03:02]} 17. dxe5 {[%emt 0:01:49] White is more active.} Nxe5 {[%emt 0:00:03]} 18. Bxe5 {[%emt 0:00:34]} fxe5 {[%emt 0:00:02]} 19. Ng5 {[%emt 0:00:02]} b6 {[%emt 0:02:14]} 20. Rb5 {[%emt 0:03:19]} Bf5 {[%emt 0:00:11]} 21. Rxd5 {[%emt 0:00:49]} h6 {[%emt 0:00:08]} 22. Nf3 {[%emt 0:00:12]} Be6 {[%emt 0:00:01]} 23. Rb5 Bd7 {[%emt 0:00:24]} 24. Rd5 {[%emt 0:03:31]} Be6 {[%emt 0:00:02]} 25. Rd6 $36 {[%emt 0:00:01][%mdl 2048] White is more active.} Bxb3 {[%emt 0:00:03]} 26. Rxg6 {[%emt 0:00:01]} Rac8 {[%emt 0:01:09]} 27. Ra1 {[%emt 0:01:00]} e4 {[%emt 0:01:40]} (27... Bf7 $16 28. Rg3 e4) 28. Nd4 $18 {[%emt 0:00:54]} ({Worse is} 28. Rxa7 Rf7 29. Rxf7 Bxf7 30. Rxb6 exf3 31. Bxf3 Rxc3 $15) 28... Bf7 {[%emt 0:00:11]} 29. Rg3 {[%emt 0:01:12]} (29. Rg4 $18 {Strongly threatening Nf5.} h5 30. Rg5 (30. Rxe4 a5 $16)) 29... Kh8 {[%emt 0:00:14]} 30. Rxa7 {[%emt 0:00:36][%cal Od4e6] Threatens to win with Ne6!} Rxc3 {[%emt 0:00:03] [#]} 31. Rxg7 {[%emt 0:01:35][%mdl 512]} Kxg7 {[%emt 0:00:09]} 32. Ne6+ $1 {[%emt 0:00:10]} Kg8 {[%emt 0:00:07]} 33. Nxf8 {[%emt 0:00:02]} Kxf8 {[%emt 0:00:01][%mdl 4096] Endgame KRB-KRB} 34. Bg4 {[%emt 0:00:10]} b5 {[%emt 0:00:39] [#]} (34... Bg6 $142 35. Bd7 Rc1+ 36. Kh2 Rd1) 35. Rb7 $1 {[%emt 0:00:02]} Bc4 {[%emt 0:00:01]} (35... Be8 $142 36. Rh7 Rc1+ 37. Kh2 Rc6) 36. Bf5 {[%emt 0:00:01]} Bd3 {[%emt 0:00:02]} 37. Kh2 {[%emt 0:00:10]} Rc5 {[%emt 0:00:07]} 38. Be6 {[%emt 0:00:07]} (38. g4 $142) 38... Re5 {[%emt 0:00:19]} 39. Bd7 {[%emt 0:00:15]} Rd5 $2 {[%emt 0:00:35]} (39... h5 {was worth a try.} 40. h4 Rd5) 40. Kg3 $2 {[%emt 0:00:07]} (40. g4 $18) 40... Rg5+ $16 {[%emt 0:00:01] [#]} 41. Kh2 $2 {[%emt 0:00:08][%mdl 8192]} (41. Bg4 $1 $16) 41... Rd5 $1 $18 {[%emt 0:00:02]} 42. g4 {[%emt 0:00:02]} Rc5 {[%emt 0:00:51]} 43. Kg3 {[%emt 0:00:03]} Rd5 {[%emt 0:00:13]} 44. h4 {[%emt 0:00:03]} Rc5 {[%emt 0:00:01]} 45. Bf5 {[%emt 0:01:00]} Ke8 {[%emt 0:00:18]} 46. Kf4 {[%emt 0:00:31]} Rc2 {[%emt 0:00:02]} 47. Bxe4 {[%emt 0:00:09]} Bxe4 {[%emt 0:00:12]} (47... Rxf2+ $142 48. Kg3 Rd2 49. Bxd3 Rxd3) 48. Kxe4 {[%emt 0:00:02]} Rxf2 {[%emt 0:00:03]} 49. Rxb5 {[%emt 0:00:04]} Kf7 {[%emt 0:00:03] Weighted Error Value: White=0.31/Black=0.29 (precise)} 1-0